Cogmind - Beta 14 @@@ ROGUE MODE // 2024.08.17 @ 01:21:28 Player: cptwinky Result: Destroyed by G-73 Enforcer with Heavy Laser Performance ------------- Evolutions (9) 4500 Regions Visited (19) 3800 Robots Destroyed (367) 1835 Value Destroyed (18625) 18625 Prototype IDs (102) 2040 Alien Tech Used (3) 600 Bonus (11144) 11144 TOTAL SCORE: 42544 Bonus ------- Triggered High Security 500 High Alert Combat Kills 6075 Follower Combat Kills 1446 Entered DSFs 500 Aligned with FarCom 300 Hacked Protovariant 500 Scanned by Researcher 500 Met Sigix 2000 Friendly Fire -677 Cogmind --------- Core Integrity 0/1600 Matter 95/300 Energy 84/100 System Corruption 24% Temperature Cool (9) Movement Core (50) Location -1/Access Parts ------- > --- POWER (3) -------- (None) > --- PROPULSION (6) --- (None) > --- UTILITY (13) ----- Experimental Coolant Injector Graphene Brace > --- WEAPON (3) ------- (None) > --- INVENTORY (5) ---- Core Cannon Peak State ------------ > --- POWER ------------ Enhanced Fission Core Quantum Reactor Zero-point Reactor > --- PROPULSION ------- Experimental Biometal Heavy Treads Experimental Biometal Heavy Treads Advanced Heavy Siege Treads > --- UTILITY ---------- 2N-1CE's Frost Array Experimental Coolant Injector High-capacity Storage Unit Deep Structural Scanner Experimental Signal Interpreter Precision Matter Filter SHELL Armor Graphene Brace Beam Splitter AEGIS Remote Shield Improved Component Analysis Suite > --- WEAPON ----------- Enhanced Nova Cannon Enhanced Nova Cannon Compact Linear Accelerator > --- INVENTORY -------- Light Quantum Reactor Advanced Matter Compressor Advanced Force Field Core Reset Matrix Subatomic Replicator Core Cannon Hypervelocity Mass Driver Hypercooled Linear Accelerator Perforator Advanced Micro-nuke Launcher Containment Facilitator Advanced Remote Datajack Improved Plasma Cutter Voltaic Drivehammer IN-MT5's Pitchfork "Insurrection" Sigix Containment Pod [Rating: 233] Favorites ----------- Power Heavy Ion Engine Engine Heavy Ion Engine Power Core Enhanced Fission Core Reactor Quantum Reactor Propulsion Armored Treads Treads Armored Treads Wheel Overtuned Huge Scrapsphere Utility Cooling System Device Cooling System Storage High-capacity Storage Unit Processor Experimental Signal Interpreter Hackware Hacking Suite Protection Hardened Medium Armor Plating Artifact Phase Armor Weapon Heavy Particle Cannon Energy Gun Particle Gun Energy Cannon Heavy Particle Cannon Ballistic Gun Overtuned Coil Gun Ballistic Cannon Hypervelocity Mass Driver Launcher Advanced Micro-nuke Launcher Special Weapon CPS Tube Impact Weapon Maul Special Melee Weapon Improved Datajack Build | -11 -10 -10 -9 -9 -9 -8 -8 -8 -8 -8 -6 -5 -5 -4 -3 -3 -2 -2 -1 ------- Run | Yrd Mat Min Mat Min Exi Min Mat Sto Rec Scr Fac Fac DSF Fac Res Qua Res Tes Acc Slots Evolved 18 | . . . 2 . . . 2 . . . 4 2 . 2 2 . 2 . 2 Power 2 | . . . . . . . . . . . 1 . . 1 . . . . . Propulsion 4 | . . . 1 . . . . . . . . . . 1 2 . . . . Utility 11 | . . . 1 . . . 1 . . . 3 2 . . . . 2 . 2 Weapon 1 | . . . . . . . 1 . . . . . . . . . . . . Parts Attached 333 | 6 9 9 18 . 3 . 9 26 2 78 23 1 12 14 1 43 10 29 40 Power 19 | 1 1 1 1 . . . . 1 . 2 2 . . 4 . 1 . 1 4 Engine 6 | 1 1 1 1 . . . . 1 . . 1 . . . . . . . . Core 7 | . . . . . . . . . . 2 1 . . 4 . . . . . Reactor 6 | . . . . . . . . . . . . . . . . 1 . 1 4 Propulsion 46 | 2 2 3 7 . . . 4 2 . 7 2 . . 1 1 4 2 3 6 Treads 45 | 2 2 3 7 . . . 4 2 . 6 2 . . 1 1 4 2 3 6 Leg . | . . . . . . . . . . . . . . . . . . . . Wheel 1 | . . . . . . . . . . 1 . . . . . . . . . Hover . | . . . . . . . . . . . . . . . . . . . . Flight . | . . . . . . . . . . . . . . . . . . . . Utility 124 | 1 3 2 5 . 1 . 4 1 1 46 7 1 7 7 . 17 6 9 6 Device 71 | . . . 3 . . . 1 . 1 21 4 1 5 4 . 12 5 8 6 Storage 9 | 1 1 1 . . 1 . . . . 3 . . . . . 2 . . . Processor 3 | . . . . . . . . . . 1 . . 1 1 . . . . . Hackware 2 | . . . . . . . 1 . . . . . . . . . 1 . . Protection 37 | . 2 1 2 . . . 2 1 . 21 3 . 1 2 . 1 . 1 . Artifact 2 | . . . . . . . . . . . . . . . . 2 . . . Weapon 144 | 2 3 3 5 . 2 . 1 22 1 23 12 . 5 2 . 21 2 16 24 Energy Gun 7 | . 2 3 . . . . . 2 . . . . . . . . . . . Energy Cannon 48 | . . . 4 . 1 . 1 12 1 13 4 . . . . . 1 6 5 Ballistic Gun 14 | 2 1 . . . . . . . . . 2 . 3 . . 6 . . . Ballistic Cannon 27 | . . . . . . . . . . 3 1 . . 2 . 5 1 7 8 Launcher 19 | . . . 1 . . . . 2 . 1 2 . 2 . . 2 . 2 7 Special Weapon 11 | . . . . . . . . . . 4 1 . . . . 1 . 1 4 Impact Weapon 13 | . . . . . . . . 2 . 2 2 . . . . 7 . . . Slashing Weapon . | . . . . . . . . . . . . . . . . . . . . Piercing Weapon . | . . . . . . . . . . . . . . . . . . . . Special Melee Weapon 5 | . . . . . 1 . . 4 . . . . . . . . . . . Unidentified Prototypes 29 | . . . . . . . . 4 . 2 . . 1 2 . 10 1 9 . Parts Lost 28 | . . 2 1 . . . . . . 2 1 . . . . . . . 22 Power 7 | . . 1 . . . . . . . . . . . . . . . . 6 Propulsion 5 | . . . . . . . . . . . . . . . . . . . 5 Utility 12 | . . . 1 . . . . . . 2 1 . . . . . . . 8 Weapon 4 | . . 1 . . . . . . . . . . . . . . . . 3 Highest Loss Streak 7 | . . 1 1 . . . . . . 1 1 . . . . . . . 7 To Critical Strikes . | . . . . . . . . . . . . . . . . . . . . Average Slot Usage (%) 86 | . 97 100 99 100 100 100 97 99 100 82 81 74 81 78 73 77 79 76 71 Engine 6 | . 14 14 11 11 11 11 9 9 9 5 . 5 5 5 4 3 . . . Core 3 | . . . . . . . . . . 3 12 5 5 10 9 9 8 7 1 Treads 18 | . 27 28 32 33 33 33 27 26 27 14 5 5 5 5 6 12 16 12 11 Device 13 | . . . 10 11 11 11 12 9 11 13 15 21 24 16 14 14 20 19 25 Storage 8 | . 14 14 11 11 11 11 9 9 9 9 6 5 5 5 4 4 4 4 3 Processor 1 | . . . . . . . . . . . 6 5 5 9 9 8 4 4 2 Hackware 1 | . . . . . . . 4 9 6 . . . . . . . 1 4 1 Protection 8 | . 11 14 10 11 11 11 9 9 9 10 5 5 8 5 4 . . 2 3 Energy Gun 1 | . 11 22 . . . . . . . . . . . . . . . . . Energy Cannon 15 | . . . 21 22 19 22 25 24 27 18 18 . . . . . . 3 6 Ballistic Gun 1 | . 16 5 . . . . . . . . . 5 4 5 4 2 . . . Ballistic Cannon 2 | . . . . . . . . . . 2 . 5 5 8 9 10 12 8 4 Peak Build Rating 233 | 6 8 12 21 21 22 22 34 36 38 60 71 76 84 116 120 177 197 213 233 Average Rating 63 | 4 7 9 19 21 21 22 28 34 36 46 65 74 81 112 118 155 184 198 211 On Entrance 65 | . 6 8 11 21 21 22 22 34 36 38 49 69 76 83 116 120 177 193 210 Naked Turns . | . . . . . . . . . . . . . . . . . . . . Heaviest Build 187 | 11 30 54 62 62 62 62 73 76 77 78 80 80 93 123 123 186 187 187 175 Greatest Support 250 | 40 40 40 62 62 62 62 62 62 62 65 20 20 20 20 20 195 220 230 250 Greatest Overweight (x) 9 | . . 1 1 . . . 1 1 1 2 3 3 4 6 6 9 . 1 1 Average Overweight (x) 1 | . . . . . . . . 1 1 1 3 3 3 5 6 4 . . . Largest Inventory Capacity 20 | 8 15 20 20 20 20 20 20 20 20 20 15 15 15 15 15 20 20 20 20 Average Capacity 17 | 6 10 16 20 20 20 20 20 20 20 16 15 15 15 15 15 19 20 20 19 Most Carried 20 | 6 14 18 20 20 20 20 20 20 20 20 15 14 15 15 15 20 20 20 20 Average Carried 16 | 2 9 15 19 19 19 20 19 19 19 15 13 13 14 14 15 19 19 19 18 Final Capacity 20 | 8 15 20 20 20 20 20 20 20 20 15 15 15 15 15 15 20 20 20 5 Final Carried 20 | 6 14 17 20 20 20 20 20 20 19 15 14 13 15 15 15 20 20 20 2 Class Distribution -------------------- 28% | Scavenger-Tank 20% | Mutant 14% | Tank 12% | Commander-Tank 7% | Commander-Skirmisher 6% | Skirmisher 5% | Scavenger-Scrapper Dominant Class ---------------- Mutant | -10/Materials Mutant | -10/Mines Mutant | -9/Materials Mutant | -9/Mines Mutant | -9/Exiles Mutant | -8/Mines Skirmisher | -8/Materials Skirmisher | -8/Storage Commander-Skirmisher | -8/Recycling Commander-Tank | -8/Scraptown Scavenger-Tank | -6/Factory Scavenger-Scrapper | -5/Factory Scavenger-Scrapper | -5/DSF Scavenger-Tank | -4/Factory Scavenger-Tank | -3/Research Scavenger-Tank | -3/Quarantine Scavenger-Tank | -2/Research Tank | -2/Testing Scavenger-Tank | -1/Access Resources | -11 -10 -10 -9 -9 -9 -8 -8 -8 -8 -8 -6 -5 -5 -4 -3 -3 -2 -2 -1 ----------- Run | Yrd Mat Min Mat Min Exi Min Mat Sto Rec Scr Fac Fac DSF Fac Res Qua Res Tes Acc Matter Collected 13903 | 230 313 151 193 . 30 . 90 301 20 5186 536 . 274 778 179 1845 656 1324 1797 Remotely 2576 | . . . . . . . . . . 2576 . . . . . . . . . Salvage Created 19889 | . 767 311 927 . . . 467 1355 170 5536 883 . 431 564 199 624 1023 1142 5490 Parts 913 | . 48 22 55 . . 1 24 73 13 261 33 . 19 29 8 42 40 49 196 Haulers Intercepted 13 | . 2 . 4 . . . 2 3 . . . . 1 . . . . . 1 Recyclers Shooed 11 | . 1 . . . . . 2 1 . . 2 . . . . . . . 5 Parts Field Recycled . | . . . . . . . . . . . . . . . . . . . . Retrieved Matter . | . . . . . . . . . . . . . . . . . . . . Parts Self-Destructed 13 | . . . . . . . . . . 13 . . . . . . . . . Prevented . | . . . . . . . . . . . . . . . . . . . . Kills | -11 -10 -10 -9 -9 -9 -8 -8 -8 -8 -8 -6 -5 -5 -4 -3 -3 -2 -2 -1 ------- Run | Yrd Mat Min Mat Min Exi Min Mat Sto Rec Scr Fac Fac DSF Fac Res Qua Res Tes Acc Combat Hostiles Destroyed 367 | . 12 13 18 . . . 4 23 3 108 15 . 10 10 3 11 14 22 101 Melee 1 | . . . . . . . . . . . . . . . . . . . 1 Guns 29 | . 12 13 . . . . . . . . . . 1 1 . 2 . . . Cannons 247 | . . . 16 . . . 4 13 3 103 12 . 5 9 3 9 13 17 40 AOE 76 | . . . 2 . . . . 6 . 3 2 . 4 . . . . 5 54 Classes Destroyed 32 | . 7 1 . . . 1 2 3 . 11 1 . 1 . . . 2 2 1 Worker 9 | . 2 . 2 . . . 2 1 . . . . . . . . . . 2 Builder 9 | . . . . . . . 1 1 . . . . . . . . . . 7 Tunneler 1 | . . . . . . 1 . . . . . . . . . . . . . Hauler 13 | . 2 . 4 . . . 2 3 . . . . 1 . . . . . 1 Recycler 6 | . 2 . . . . . 1 1 . . . . . . . . . . 2 Mechanic 5 | . . . . . . . . . . . . . . . . . 1 . 4 Operator 7 | . 2 . 1 . . . 1 . . 2 . . . . . . . . 1 Watcher 8 | . 3 . . . . . . 1 . . 1 . . . . . . 1 2 Swarmer 39 | . 3 9 6 . . . . . . . 2 . 5 . 1 . . 4 9 Saboteur 1 | . . . . . . . . . . . . . . . . . . . 1 Grunt 108 | . 9 2 5 . . . 1 12 . . 6 . 2 4 . . 6 3 58 Brawler 8 | . . . . . . . . 1 . . 1 . 1 . . . . 1 4 Duelist 10 | . . . . . . . . 2 . . 2 . . . . . 1 . 5 Protector 4 | . . . . . . . . 1 . . . . . . . . . . 3 Researcher 1 | . . . . . . . . . . . . . . . . . . 1 . Sentry 31 | . . 2 7 . . . 2 7 3 . 1 . . 2 2 . . 1 4 Specialist 4 | . . . . . . . . . . . . . . . . . . 2 2 Hunter 18 | . . . . . . . 1 . . . 2 . 1 . . 2 2 2 8 Programmer 24 | . . . . . . . . . . . 1 . . 4 . . 4 9 6 Heavy 1 | . . . . . . . . . . . . . 1 . . . . . . Behemoth 2 | . . . . . . . . . . . . . . . . . 1 . 1 Quarantine Guard 9 | . . . . . . . . . . . . . . . . 9 . . . Investigator 1 | . . . . . . . . . . . . . . . . . . . 1 Bolteater 5 | . . . . . . . . . . 5 . . . . . . . . . Federalist 7 | . . . . . . . . . . 7 . . . . . . . . . Explorer 8 | . . . . . . . . . . 8 . . . . . . . . . Ranger 7 | . . . . . . . . . . 7 . . . . . . . . . Guru 10 | . . . . . . . . . . 10 . . . . . . . . . Scientist 12 | . . . . . . . . . . 12 . . . . . . . . . Scrapper 45 | . . . . . . . . . . 45 . . . . . . . . . Elite 20 | . . . . . . . . . . 20 . . . . . . . . . Scrapoid 1 | . . . . . . . . . . 1 . . . . . . . . . Zionite 2 | . . . . . . . . . . 2 . . . . . . . . . Tinkerer 3 | . . . . . . . . . . 3 . . . . . . . . . Thug 5 | . . . . . . . . . . 5 . . . . . . . . . Best Kill Streak 32 | . 4 3 4 . . 1 4 5 1 26 3 . 5 2 2 2 5 7 32 Combat Bots Only 27 | . 4 3 4 . . . 2 4 1 26 3 . 5 2 2 2 5 7 27 Max Kills in Single Turn 5 | . 1 1 1 . . 1 2 4 1 2 1 . 3 1 2 2 2 3 5 Gunslinging . | . . . . . . . . . . . . . . . . . . . . Exploded 5 | . . . 1 . . . . 3 . 2 1 . 3 . . . . 3 5 Melee 1 | . . . . . . . . . . . . . . . . . . . 1 Uniques/NPCs Destroyed 1 | . . . . . . . . . . 1 . . . . . . . . . Triborg (-8/Scraptown) Combat | -11 -10 -10 -9 -9 -9 -8 -8 -8 -8 -8 -6 -5 -5 -4 -3 -3 -2 -2 -1 -------- Run | Yrd Mat Min Mat Min Exi Min Mat Sto Rec Scr Fac Fac DSF Fac Res Qua Res Tes Acc Hostile Shots Fired 1853 | . 39 82 63 1 . . 12 35 . 184 105 . 13 46 9 34 91 138 1001 Missed 513 | . 10 22 22 1 . . 2 8 . 44 30 . 8 10 2 13 18 25 298 Damage Taken 21449 | . 344 592 502 . . . 154 470 . 2288 1317 . 268 503 84 543 767 1816 11801 Core 2447 | . 11 91 86 . . . 15 52 . 39 113 . 10 19 13 159 157 80 1602 Absorbed by Shields 8134 | . . . . . . . . . . . . . 32 257 87 455 801 996 5506 Reduced by Siege Mode 880 | . . . . . . . . . . 434 . . . 17 . . 34 115 280 Redirected to Core 309 | . . . . . . . . . . . . . . . . 141 128 40 . Ignored by Resistances 522 | . . . . . . . . . . . . . . . . . 211 . 311 Regen/Repaired (Parts) 4314 | . 51 . 60 . . . . 318 . 394 18 . 6 . . . . 913 2554 Core Remaining (%) 85 | 100 . 59 . . . 78 . . . 80 86 . 99 98 . 86 . 83 . Volleys Fired 873 | . 63 33 48 . . . 18 52 4 253 51 . 21 27 6 32 25 73 167 Largest 3 | . 2 2 2 . . . 3 3 3 3 3 . 2 3 3 3 3 3 3 Hottest 310 | . 70 130 150 . . . 225 225 225 225 225 . 92 164 164 164 252 310 310 Shots Fired 1703 | . 125 66 94 . . . 41 112 10 351 140 . 38 68 18 76 71 146 347 Gun 255 | . 125 66 . . . . . . . . 3 . 17 19 6 19 . . . Cannon 1382 | . . . 92 . . . 41 108 10 346 133 . 18 49 12 57 71 143 302 Launcher 57 | . . . 2 . . . . 4 . 2 4 . 3 . . . . 2 40 Special 9 | . . . . . . . . . . 3 . . . . . . . 1 5 Kinetic 750 | . 73 25 . . . . . . . 196 3 . 35 68 18 76 60 89 107 Thermal 887 | . 52 41 92 . . . 41 108 10 150 133 . . . . . 11 54 195 Explosive 56 | . . . 2 . . . . 4 . 2 4 . 3 . . . . 2 39 Electromagnetic 1 | . . . . . . . . . . . . . . . . . . . 1 Robot Hit Streak 27 | . 13 11 11 . . . 6 9 7 25 14 . 7 8 15 10 25 27 25 Robot Miss Streak 6 | . 5 2 2 . . . 2 3 . 6 4 . 3 3 5 2 2 2 6 Penetration Max 2 | . . . . . . . . . . 2 . . . 1 1 1 2 . . Secondary Targets 4 | . 1 3 . . . . . . . . . . . . . . . . . Max Gunslinging Chain 1 | . 1 1 . . . . . . . . . . . . . . . . . Shots Hit Robots 1053 | . 74 43 58 . 4 . 20 64 6 230 87 . 18 44 10 48 44 81 222 Core Hits 676 | . 37 16 24 . . . 13 41 3 123 36 . 11 13 6 16 20 36 281 Critical Kills 48 | . . . . . . . . 2 . 1 1 . . 8 3 11 11 4 7 Critical Parts Destroyed 55 | . . . . . . . . 2 . . 1 . . 11 1 16 19 3 2 Critical Strikes 149 | . 5 . . . . . . 4 . 20 2 . . 22 7 30 34 11 14 Burn 5 | . 5 . . . . . . . . . . . . . . . . . . Meltdown 11 | . . . . . . . . 2 . 1 1 . . . . . 1 1 5 Destroy 101 | . . . . . . . . . . . 1 . . 21 7 30 31 7 4 Blast 29 | . . . . . . . . . . 19 . . . 1 . . 2 3 4 Smash 3 | . . . . . . . . 2 . . . . . . . . . . 1 Melee Attacks 39 | . . . . . 4 . . 12 . 7 3 . . . . 13 . . . Impact 33 | . . . . . . . . 10 . 7 3 . . . . 13 . . . Slashing . | . . . . . . . . . . . . . . . . . . . . Piercing . | . . . . . . . . . . . . . . . . . . . . Sneak Attacks 5 | . . . . . 4 . . 1 . . . . . . . . . . . Combat Hostiles . | . . . . . . . . . . . . . . . . . . . . Follow-up Attacks . | . . . . . . . . . . . . . . . . . . . . Damage Inflicted 63227 | . 975 637 1724 . . 21 640 2200 172 20334 2551 . 1151 1148 328 1152 1537 4296 24361 Guns 2695 | . 949 607 . . . . . . . . 44 . 171 377 180 367 . . . Cannons 41564 | . . . 1517 . . . 633 1413 162 19825 2314 . 636 771 148 785 1515 3473 8372 Explosions 18072 | . . . 204 . . . . 439 . 273 193 . 344 . . . . 823 15796 Melee 568 | . . . . . . . . 332 . 236 . . . . . . . . . Ramming 284 | . 26 30 3 . . 21 7 16 10 . . . . . . . 22 . 149 Kinetic 27630 | . 469 236 . . . . . . . 17778 44 . 807 1148 328 1152 1143 2113 2412 Thermal 16629 | . 480 371 1517 . . . 633 1413 162 2047 2314 . . . . . 372 1360 5960 Explosive 17685 | . . . 204 . . . . 439 . 273 193 . 344 . . . . 823 15409 Electromagnetic 387 | . . . . . . . . . . . . . . . . . . . 387 Impact 612 | . . . . . . . . 332 . 236 . . . . . . . . 44 Slashing . | . . . . . . . . . . . . . . . . . . . . Piercing . | . . . . . . . . . . . . . . . . . . . . Highest Corruption 24 | . . . . . . . . . . 1 . . . 2 . . . 13 24 Average Corruption 4 | . . . . . . . . . . 1 . . . 1 . . . 3 9 Corruption Purged . | . . . . . . . . . . . . . . . . . . . . Corruption Blocked . | . . . . . . . . . . . . . . . . . . . . Effects 76 | . . . . . . . . . . 8 . . . 1 . . . 14 53 Message Errors 21 | . . . . . . . . . . 2 . . . . . . . 7 12 Matter Fused 13 | . . . . . . . . . . 2 . . . 1 . . . 2 8 Heat Flow Errors 11 | . . . . . . . . . . 2 . . . . . . . 2 7 Energy Discharges 3 | . . . . . . . . . . . . . . . . . . 1 2 Parts Rejected 3 | . . . . . . . . . . . . . . . . . . . 3 Parts Fused 1 | . . . . . . . . . . . . . . . . . . . 1 Data Loss (minor) 7 | . . . . . . . . . . 1 . . . . . . . . 6 Data Loss (major) 3 | . . . . . . . . . . . . . . . . . . 1 2 Misfires 2 | . . . . . . . . . . . . . . . . . . 1 1 Alerts 2 | . . . . . . . . . . 1 . . . . . . . . 1 Weapon Failures 10 | . . . . . . . . . . . . . . . . . . . 10 Overload Shots . | . . . . . . . . . . . . . . . . . . . . Overflow Damage 4029 | . . . 68 . . . . 113 . 2857 15 . 26 16 . 11 20 178 725 Projectiles 3057 | . . . 43 . . . . . . 2730 15 . 18 16 . 11 20 62 142 Explosions 675 | . . . 25 . . . . 4 . . . . 8 . . . . 116 522 Melee 297 | . . . . . . . . 109 . 127 . . . . . . . . 61 Knockbacks 111 | . . . . . . . 1 5 1 51 . . 1 7 . . 12 15 18 Impact 7 | . . . . . . . 1 4 1 . . . . . . . . . 1 Kinetic 97 | . . . . . . . . . . 49 . . 1 7 . . 9 15 16 Secondary 7 | . . . . . . . . 1 . 2 . . . . . . 3 . 1 Self-Inflicted Damage 673 | . . . 68 . . . . 21 . . . . . . . . . 64 520 Shots 17 | . . . 2 . . . . 1 . . . . . . . . . 2 12 Rammed 30 | . 5 5 1 . . . 3 4 1 . . . . . . . 1 . 10 Targets Rammed 34 | . 7 5 1 . . 1 3 4 1 . . . . . . . 1 . 11 Kicked . | . . . . . . . . . . . . . . . . . . . . Crushed 4 | . 2 . . . . 1 . . . . . . . . . . . . 1 Highest Temperature 390 | . 270 390 286 . . . 189 342 99 380 372 . . 276 76 287 276 270 169 Average Temperature 90 | . 78 99 67 . . . 75 111 55 60 122 . . 128 39 98 112 122 62 Received Heat Transfer 3203 | . 171 99 99 . . . 18 279 . 753 387 . . 73 4 . 108 142 1070 Effects 10 | . 1 2 . . . . . 1 . 2 4 . . . . . . . . Energy Bleed 4 | . 1 1 . . . . . 1 . . 1 . . . . . . . . Interference 5 | . . . . . . . . . . 2 3 . . . . . . . . Short Circuit 1 | . . 1 . . . . . . . . . . . . . . . . . Siege Activations 30 | . . . . . . . . . . 7 . . . 2 1 3 4 6 7 Total Turns 3251 | . . . . . . . . . . 2755 . . . 71 9 28 53 129 206 Longest Duration 1635 | . . . . . . . . . . 1635 . . . 61 9 16 27 43 55 Robots Corrupted 3 | . . . . . . . . 3 . . . . . . . . . . . Combat Hostiles 3 | . . . . . . . . 3 . . . . . . . . . . . Parts Fried 10 | . . . . . . . . 6 . . . . . . . . . . 4 Impact Corruptions 12 | . . . . . . . . 5 . 3 . . . . . . . . 4 Robots Melted 14 | . . . 1 . . . . 2 . 2 1 . . . . . 1 1 6 Combat Hostiles 11 | . . . . . . . . 1 . 2 1 . . . . . 1 . 6 Parts Melted 50 | . 3 1 1 . . . 1 7 . 17 8 . . . . . . 3 9 Heat Transferred 19719 | . 1776 925 2183 . . . 925 2018 222 2526 3006 . . . . . 259 1110 4769 Parts Sabotaged . | . . . . . . . . . . . . . . . . . . . . Parts Stolen . | . . . . . . . . . . . . . . . . . . . . Parts Stripped . | . . . . . . . . . . . . . . . . . . . . Power Chain Reactions . | . . . . . . . . . . . . . . . . . . . . Alert | -11 -10 -10 -9 -9 -9 -8 -8 -8 -8 -8 -6 -5 -5 -4 -3 -3 -2 -2 -1 ------- Run | Yrd Mat Min Mat Min Exi Min Mat Sto Rec Scr Fac Fac DSF Fac Res Qua Res Tes Acc Peak Influence 3595 | . 339 252 174 93 . 5 165 501 187 . 567 273 618 504 394 400 468 674 3595 Initial 366 | . . 22 2 42 . . 1 . 145 . . 268 191 324 243 221 170 216 366 Average 290 | . 115 120 71 53 . . 55 317 27 . 349 271 404 398 306 264 299 378 1371 Maximum Alert Level 5 | . 1 1 . . . . . 2 . . 2 1 2 2 1 2 2 2 5 Low Security (%) 50 | 100 85 79 100 100 . 100 100 20 100 . 26 . . . . 8 11 6 . Level 1 29 | . 14 20 . . . . . 57 . . 18 100 56 59 100 90 75 53 1 Level 2 13 | . . . . . . . . 22 . . 55 . 42 40 . 1 12 40 27 Level 3 2 | . . . . . . . . . . . . . . . . . . . 31 Level 4 . | . . . . . . . . . . . . . . . . . . . 7 Level 5 . | . . . . . . . . . . . . . . . . . . . 2 High Security 2 | . . . . . . . . . . . . . . . . . . . 29 Max Security . | . . . . . . . . . . . . . . . . . . . . Sterilizations 1 | . . . . . . . . . . . . . 1 . . . . . . Squads Dispatched 61 | . 3 1 2 . . . 1 8 . . 8 . 2 2 . 1 2 7 24 Investigation 5 | . . 1 1 . . . . . . . 2 . . . . 1 . . . Extermination 6 | . . . . . . . . . . . 1 . . 1 . . 1 2 1 Reinforcement 21 | . 3 . 1 . . . 1 3 . . 3 . 2 1 . . 1 2 4 Assault 22 | . . . . . . . . 2 . . 1 . . . . . . 2 17 Garrison 7 | . . . . . . . . 3 . . 1 . . . . . . 1 2 Intercept . | . . . . . . . . . . . . . . . . . . . . Searches Triggered . | . . . . . . . . . . . . . . . . . . . . Construction Impeded 6 | . . . . . . . . 1 . . 1 . . 1 . . 1 . 2 Haulers Reinforced . | . . . . . . . . . . . . . . . . . . . . Active Scanning Responses . | . . . . . . . . . . . . . . . . . . . . Cargo Convoy Interrupts . | . . . . . . . . . . . . . . . . . . . . Stealth | -11 -10 -10 -9 -9 -9 -8 -8 -8 -8 -8 -6 -5 -5 -4 -3 -3 -2 -2 -1 --------- Run | Yrd Mat Min Mat Min Exi Min Mat Sto Rec Scr Fac Fac DSF Fac Res Qua Res Tes Acc Distress Signals 22 | . 3 . 7 . . . . 4 . 1 1 . . 1 . . . 1 4 Communications Jammed . | . . . . . . . . . . . . . . . . . . . . Distress Signals . | . . . . . . . . . . . . . . . . . . . . Times Spotted 533 | . 31 13 31 1 . . 5 40 . 90 45 . 16 16 6 11 16 34 178 Peak Tracking Total 23 | . 4 3 5 1 . . 2 5 . 6 7 . 5 4 5 2 5 8 23 Tactical Retreats 22 | . . . 1 . . . . 4 . 3 6 . . 1 1 . 1 . 5 Traps | -11 -10 -10 -9 -9 -9 -8 -8 -8 -8 -8 -6 -5 -5 -4 -3 -3 -2 -2 -1 ------- Run | Yrd Mat Min Mat Min Exi Min Mat Sto Rec Scr Fac Fac DSF Fac Res Qua Res Tes Acc Traps Triggered 4 | . . . 1 . . . . . . . 1 . . . . . 1 . 1 Indirectly . | . . . . . . . . . . . . . . . . . . . . Trap Hack Attempts 120 | . . . . . . . . 120 . . . . . . . . . . . Triggered 2 | . . . . . . . . 2 . . . . . . . . . . . Disarmed 3 | . . . . . . . . 3 . . . . . . . . . . . Reprogrammed 19 | . . . . . . . . 15 . . . . . . . 4 . . . Reused 16 | . . 1 . . . . . 13 . . 1 . . . . 1 . . . Traps Extracted . | . . . . . . . . . . . . . . . . . . . . Installed 3 | . . 1 . 1 . . . . . . 1 . . . . . . . . Triggered 16 | . . 1 . . . . . 13 . . 1 . . . . 1 . . . Most Traps Carried 3 | . . 3 2 2 1 . . . . 1 1 . . . . . . . . Objects Rigged 6 | . . . . . . . . . . 6 . . . . . . . . . Exploded 6 | . . . . . . . . . . 6 . . . . . . . . . Machines | -11 -10 -10 -9 -9 -9 -8 -8 -8 -8 -8 -6 -5 -5 -4 -3 -3 -2 -2 -1 ---------- Run | Yrd Mat Min Mat Min Exi Min Mat Sto Rec Scr Fac Fac DSF Fac Res Qua Res Tes Acc Machines Disabled 50 | . . . . . . . 1 5 . 18 1 . 1 . . 8 2 9 5 Max in Single Turn 2 | . . . . . . . 1 1 . 2 1 . 1 . . 1 1 1 1 Garrison Access 5 | . . . . . . . . 1 . . 1 . . . . . . 1 2 Machines Repaired . | . . . . . . . . . . . . . . . . . . . . Machines Dismantled 1 | . . . . . . . . . . . . . . . . 1 . . . Machines Sabotaged . | . . . . . . . . . . . . . . . . . . . . Overloaded Fab Kills . | . . . . . . . . . . . . . . . . . . . . Hacking | -11 -10 -10 -9 -9 -9 -8 -8 -8 -8 -8 -6 -5 -5 -4 -3 -3 -2 -2 -1 --------- Run | Yrd Mat Min Mat Min Exi Min Mat Sto Rec Scr Fac Fac DSF Fac Res Qua Res Tes Acc Machines Accessed 93 | . 8 2 9 . 1 . 4 11 9 4 3 2 . 2 3 15 2 11 7 Terminals 60 | . 5 . 7 . . . 3 7 5 . . 2 . 2 1 12 2 9 5 Fabricators 2 | . . . . . . . . . . . 1 . . . 1 . . . . Repair Stations 8 | . 1 . 1 . . . . 2 . . 1 . . . . 1 . 1 1 Recycling Units 10 | . 2 . 1 . . . 1 1 4 . . . . . 1 . . . . Scanalyzers 2 | . . . . . . . . . . . . . . . . 2 . . . Garrison Access 4 | . . . . . . . . 1 . . 1 . . . . . . 1 1 Total Hacks 233 | . 27 2 27 . 1 . 8 32 19 31 5 3 . 3 7 27 3 26 12 Successful 121 | . 14 2 12 . 1 . 3 16 11 31 2 2 . . 3 11 1 9 3 Failed 111 | . 13 . 15 . . . 5 15 8 . 3 1 . 3 4 16 2 17 9 Catastrophic 24 | . 1 . 4 . . . 1 1 . . 1 . . 2 1 4 2 5 2 Database Lockouts 1 | . . . . . . . . 1 . . . . . . . . . . . Manual 97 | . 15 . 24 . 1 . 8 18 8 . 2 1 . 1 5 4 1 6 3 Terminals 144 | . 17 . 23 . . . 7 18 12 . . 3 . 3 5 21 3 23 9 Fabricators 3 | . . . . . . . . . . . 2 . . . 1 . . . . Repair Stations 24 | . 6 . 2 . . . . 10 . . 1 . . . . 2 . 2 1 Recycling Units 18 | . 4 . 2 . . . 1 3 7 . . . . . 1 . . . . Scanalyzers 4 | . . . . . . . . . . . . . . . . 4 . . . Garrison Access 6 | . . . . . . . . 1 . . 2 . . . . . . 1 2 Terminal Hacks 71 | . 5 2 3 . 1 . 2 5 4 31 . 1 . . 1 8 1 6 1 Record 24 | . . . . . . . . . . 23 . . . . . 1 . . . Part Schematic 3 | . . . . . . . . . 2 . . . . . . . . 1 . Robot Analysis 18 | . 3 . 2 . . . 2 2 1 7 . . . . 1 . . . . Prototype ID Bank 3 | . 1 . . . . . . . . . . . . . . 2 . . . Open Door 5 | . . 2 . . . . . 1 . . . . . . . 1 . 1 . Open DSF 1 | . . . . . . . . . . . . 1 . . . . . . . Level Access Points 1 | . . . . . . . . . . . . . . . . . . . 1 Terminal Index 2 | . . . . . . . . . . . . . . . . 1 . 1 . Unreport Threat 3 | . . . 1 . . . . 1 . . . . . . . . . 1 . Locate Traps 5 | . 1 . . . . . . . . . . . . . . 2 1 1 . Reprogram Traps 1 | . . . . . . . . . . . . . . . . 1 . . . Recall Reinforcements 1 | . . . . . . . . 1 . . . . . . . . . . . Zone Layout 1 | . . . . . . . . . 1 . . . . . . . . . . Derelict Proto ID Bank 2 | . . . . . 1 . . . . 1 . . . . . . . . . Protovariant Controls 1 | . . . . . . . . . . . . . . . . . . 1 . Fabricator Hacks 3 | . . . . . . . . . . . 2 . . . 1 . . . . Network Status 1 | . . . . . . . . . . . . . . . 1 . . . . Load Schematic 1 | . . . . . . . . . . . 1 . . . . . . . . Build 1 | . . . . . . . . . . . 1 . . . . . . . . Repair Station Hacks 12 | . 2 . 2 . . . . 6 . . . . . . . 1 . 1 . Scan Component 7 | . 1 . 1 . . . . 3 . . . . . . . 1 . 1 . Repair 5 | . 1 . 1 . . . . 3 . . . . . . . . . . . Recycling Unit Hacks 6 | . 1 . . . . . . 1 4 . . . . . . . . . . Retrieve Components 6 | . 1 . . . . . . 1 4 . . . . . . . . . . Scanalyzer 1 | . . . . . . . . . . . . . . . . 1 . . . Insert Component 1 | . . . . . . . . . . . . . . . . 1 . . . Garrison Access Hacks 3 | . . . . . . . . 1 . . . . . . . . . 1 1 Seal Access 3 | . . . . . . . . 1 . . . . . . . . . 1 1 Unauthorized Hacks 25 | . 6 . 7 . . . 1 3 3 . . 1 . . 1 1 . 1 1 Terminals 23 | . 6 . 6 . . . 1 2 3 . . 1 . . 1 1 . 1 1 Assimilate 1 | . . . . . . . . . . . . . . . 1 . . . . Botnet 11 | . 1 . 1 . . . 1 1 3 . . 1 . . . 1 . 1 1 Disrupt 1 | . . . . . . . . 1 . . . . . . . . . . . Skim 10 | . 5 . 5 . . . . . . . . . . . . . . . . Fabricators . | . . . . . . . . . . . . . . . . . . . . Repair Stations . | . . . . . . . . . . . . . . . . . . . . Recycling Units 2 | . . . 1 . . . . 1 . . . . . . . . . . . Reject 2 | . . . 1 . . . . 1 . . . . . . . . . . . Scanalyzers . | . . . . . . . . . . . . . . . . . . . . Garrison Access . | . . . . . . . . . . . . . . . . . . . . Data Cores Recovered 3 | . 1 . 1 . . . 1 . . . . . . . . . . . . Used 2 | . 1 . . . . . 1 . . . . . . . . . . . . Hacking Detections 75 | . 7 . 9 . . . 4 7 8 . 3 2 . 2 3 12 2 9 7 Full Trace Events 3 | . . . . . . . . . . . 2 . . . . 1 . . . Feedback Events . | . . . . . . . . . . . . . . . . . . . . Feedback Blocked . | . . . . . . . . . . . . . . . . . . . . Robot Schematics Acquired 8 | . . . . . . . . . . . . . . . . 7 . 1 . Robots Built . | . . . . . . . . . . . . . . . . . . . . Authchips . | . . . . . . . . . . . . . . . . . . . . Time . | . . . . . . . . . . . . . . . . . . . . Total Robot Build Rating . | . . . . . . . . . . . . . . . . . . . . Part Schematics Acquired 48 | . . . . . . . . . 2 11 10 . 2 6 1 13 . 3 . Parts Built 1 | . . . . . . . . . . . 1 . . . . . . . . Authchips . | . . . . . . . . . . . . . . . . . . . . Time 152 | . . . . . . . . . . . 152 . . . . . . . . Total Part Build Rating 5 | . . . . . . . . . . . 5 . . . . . . . . Parts Repaired 5 | . 1 . 1 . . . . 3 . . . . . . . . . . . Time 153 | . 13 . 26 . . . . 114 . . . . . . . . . . . Parts Recycled . | . . . . . . . . . . . . . . . . . . . . Recycled Matter . | . . . . . . . . . . . . . . . . . . . . Retrieved Matter . | . . . . . . . . . . . . . . . . . . . . Retrieved Components 36 | . 10 . . . . . . 9 17 . . . . . . . . . . Parts Scanalyzed . | . . . . . . . . . . . . . . . . . . . . Part Schematics Acquired . | . . . . . . . . . . . . . . . . . . . . Parts Damaged . | . . . . . . . . . . . . . . . . . . . . Bothacking | -11 -10 -10 -9 -9 -9 -8 -8 -8 -8 -8 -6 -5 -5 -4 -3 -3 -2 -2 -1 ------------ Run | Yrd Mat Min Mat Min Exi Min Mat Sto Rec Scr Fac Fac DSF Fac Res Qua Res Tes Acc Used RIF Installer . | . . . . . . . . . . . . . . . . . . . . Robots Hacked 9 | . . . . . 4 . . 1 . . . . . . . . . 1 3 Non-combat 4 | . . . . . 3 . . 1 . . . . . . . . . . . Combat 3 | . . . . . 1 . . . . . . . . . . . . 1 1 Robot Hacks Applied 7 | . . . . . 4 . . 1 . . . . . . . . . 1 1 parse_system 6 | . . . . . 4 . . . . . . . . . . . . 1 1 no_distress 1 | . . . . . . . . 1 . . . . . . . . . . . Manual 2 | . . . . . . . . . . . . . . . . . . . 2 Relay Couplers Released 7 | . . . . . . . . . . . 2 . . . . . . . 5 Machine Destruction 3 | . . . . . . . . . . . 2 . . . . . . . 1 Programmers 4 | . . . . . . . . . . . . . . . . . . . 4 Fabnet Peak Effective % . | . . . . . . . . . . . . . . . . . . . . Robots Rewired 1 | . . . . . . . . . . . . . . . . . . 1 . Allies Hacked 1 | . . . . . . . . . . . . . . . . . . 1 . Hacks Repelled . | . . . . . . . . . . . . . . . . . . . . Allies | -11 -10 -10 -9 -9 -9 -8 -8 -8 -8 -8 -6 -5 -5 -4 -3 -3 -2 -2 -1 -------- Run | Yrd Mat Min Mat Min Exi Min Mat Sto Rec Scr Fac Fac DSF Fac Res Qua Res Tes Acc Total Allies 29 | . . . . 3 . . . 12 . 5 3 . . . 1 . 1 2 2 Largest Group 10 | . . . . 3 3 . . 10 10 10 4 3 3 1 1 1 1 1 1 Highest-Rated Group 235 | . . . . 71 71 . . 173 173 235 188 28 28 10 9 9 10 167 10 Highest-Rated Ally 167 | . . . . 31 31 . . 31 29 47 47 10 10 10 9 9 10 167 10 Total Orders 23 | . . . . . . . . . 2 18 . . . . . 3 . . . STAY 20 | . . . . . . . . . 1 17 . . . . . 2 . . . ROAM 1 | . . . . . . . . . . 1 . . . . . . . . . FOLLOW 2 | . . . . . . . . . 1 . . . . . . 1 . . . Ally Attacks 337 | . . . . 4 . . . 38 . 127 70 . 41 3 . . 8 5 41 Total Damage 4993 | . . . . 42 . . . 547 . 1534 1269 . 482 42 . . 95 456 526 Kills 41 | . . . . 1 . . . 4 . 13 9 . 6 . . . . 3 5 Allies Corrupted 2 | . . . . . . . . . . . 1 . . . . . . 1 . Allies Melted . | . . . . . . . . . . . . . . . . . . . . Intel | -11 -10 -10 -9 -9 -9 -8 -8 -8 -8 -8 -6 -5 -5 -4 -3 -3 -2 -2 -1 ------- Run | Yrd Mat Min Mat Min Exi Min Mat Sto Rec Scr Fac Fac DSF Fac Res Qua Res Tes Acc Robot Analysis Total 18 | . 3 . 2 . . . 2 2 1 7 . . . . 1 . . . . Derelict Logs Recovered 2 | . . 1 . 1 . . . . . . . . . . . . . . . Drone Launches . | . . . . . . . . . . . . . . . . . . . . Drone Recoveries . | . . . . . . . . . . . . . . . . . . . . Exploration | -11 -10 -10 -9 -9 -9 -8 -8 -8 -8 -8 -6 -5 -5 -4 -3 -3 -2 -2 -1 ------------- Run | Yrd Mat Min Mat Min Exi Min Mat Sto Rec Scr Fac Fac DSF Fac Res Qua Res Tes Acc Turns Passed 30957 | 99 1473 1132 1843 228 593 262 805 2045 2406 12941 1108 47 208 635 201 1730 499 1267 1435 Spaces Moved 12749 | 55 755 544 536 140 374 169 289 604 969 4699 673 47 112 360 123 913 239 611 537 Core 17 | 3 . . . . . . . . . . . . . . . . . . 14 Treads 9701 | 52 755 544 536 140 374 169 289 604 969 3495 . . . . . 401 239 611 523 Legs . | . . . . . . . . . . . . . . . . . . . . Wheels 3031 | . . . . . . . . . . 1204 673 47 112 360 123 512 . . . Hover . | . . . . . . . . . . . . . . . . . . . . Flight . | . . . . . . . . . . . . . . . . . . . . Fastest Speed 50 | 50 160 160 155 155 155 155 155 241 241 90 100 100 100 110 130 130 155 146 50 Average Speed 179 | 154 160 182 209 155 155 155 231 241 241 190 100 100 108 125 130 156 155 153 146 Slowest Speed 250 | 160 160 240 240 155 155 155 241 241 241 241 100 100 110 130 130 245 155 232 250 Overloaded Moves . | . . . . . . . . . . . . . . . . . . . . Propulsion Burnouts . | . . . . . . . . . . . . . . . . . . . . Robots Hopped . | . . . . . . . . . . . . . . . . . . . . Cave-ins Triggered . | . . . . . . . . . . . . . . . . . . . . Exploration Rate (%) 50 | 4 91 98 52 40 70 47 30 89 99 91 12 2 91 9 4 79 12 63 22 Regions Visited 19 Branch Regions 9 Pre-discovered Areas 8 | . 1 1 1 . . . . . . 5 . . . . . . . . . Known Exits Taken 14 | . 1 1 1 . 1 1 . 1 1 1 . 1 . 1 1 1 1 1 . Unknown Exits Taken 4 | 1 . . . 1 . . 1 . . . 1 . . . . . . . . Scrap Searched 6 | . . 2 . 1 . . . . . 3 . . . . . . . . . Spaces Dug 66 | . . . . . . . 2 14 1 7 8 . . . . 8 2 8 16 Terrain Destroyed 805 | . . . 37 . . . 13 78 4 111 30 . 35 9 2 10 4 70 402 Melee 8 | . . . . . . . . . . 1 1 . . . . 6 . . . Projectile 330 | . . . 25 . . . 13 40 4 96 3 . 13 9 2 3 4 31 87 AOE 466 | . . . 12 . . . . 38 . 14 26 . 22 . . . . 39 315 Terrain Rammed . | . . . . . . . . . . . . . . . . . . . . Walls Destroyed . | . . . . . . . . . . . . . . . . . . . . Machines Disabled . | . . . . . . . . . . . . . . . . . . . . Actions | -11 -10 -10 -9 -9 -9 -8 -8 -8 -8 -8 -6 -5 -5 -4 -3 -3 -2 -2 -1 --------- Run | Yrd Mat Min Mat Min Exi Min Mat Sto Rec Scr Fac Fac DSF Fac Res Qua Res Tes Acc Total 19322 | 66 895 617 1164 152 389 169 391 1070 1032 8378 996 47 157 495 153 1130 311 825 885 Wait 4728 | . 40 4 530 10 . . 58 243 51 3203 213 . 3 72 22 73 27 77 102 Move 12730 | 54 754 543 535 139 373 168 288 603 968 4698 672 46 111 359 122 912 238 610 537 Hop . | . . . . . . . . . . . . . . . . . . . . Pick Up 154 | 6 12 12 13 1 4 . 6 2 3 44 9 . 4 6 1 10 5 9 7 Fast Attach 105 | 6 3 . 4 . . . 1 8 . 21 5 . 4 9 1 19 3 13 8 Attach 53 | . . 2 2 . . . 1 1 . 15 7 1 . 3 . 4 1 4 12 Detach 53 | . . . 2 . . . . . . 21 4 . 1 5 . 10 . 5 5 Swap 175 | . 6 7 12 . 3 . 7 17 2 42 11 . 8 2 . 20 6 12 20 Drop 225 | . 10 10 17 1 5 . 9 8 3 68 12 . 5 12 1 28 5 21 10 Fire 873 | . 63 33 48 . . . 18 52 4 253 51 . 21 27 6 32 25 73 167 Melee 39 | . . . . . 4 . . 12 . 7 3 . . . . 13 . . . Ram 2 | . . . . . . . . . . . . . . . . . . . 2 Kick . | . . . . . . . . . . . . . . . . . . . . Crush 32 | . 7 5 1 . . 1 3 4 1 . . . . . . . 1 . 9 Escape Stasis 14 | . . . . . . . . . . . 8 . . . . . . . 6 Rewire 1 | . . . . . . . . . . . . . . . . . . 1 . Trap 129 | . . 1 . 1 . . . 120 . 6 1 . . . . . . . . Miscellaneous 9 | . . . . . . . . . . . . . . . . 9 . . . Route ------- -11/Scrapyard -10/Materials (discovered 5 exits: *Mat x3 / *Min / Sub) -10/Mines (discovered 3 exits: *Mat x2 / Sub) -9/Materials (discovered 4 exits: *Mat x3 / *Min) -9/Mines (discovered 3 exits: *Mat / *Exi / [*Zio]) -9/Exiles (discovered 2 exits: *Min x2) -8/Mines -8/Materials (discovered 4 exits: *Fac x3 / *Sto) -8/Storage (discovered 2 exits: *Fac / *Rec) -8/Recycling (discovered 2 exits: *Fac / *Scr) -8/Scraptown (discovered 2 exits: *Fac x2) -6/Factory (discovered 2 exits: *Fac / Low) -5/Factory -5/DSF -4/Factory -3/Research (discovered 3 exits: Res x2 / *Qua) -3/Quarantine -2/Research -2/Testing -1/Access (discovered 1 exit: Sur) History --------- Turn | Location | Event 2 | -11/Scrapyard | Met Revision 17 23 | -11/Scrapyard | Discovered new exit (range 15) 100 | -11/Scrapyard | Entered Materials 280 | -10/Materials | Discovered new exit (range 8) 310 | -10/Materials | Build established: Mutant 449 | -10/Materials | Discovered new exit (range 16) 601 | -10/Materials | Discovered new exit (range 15) 976 | -10/Materials | Discovered new exit (range 13) 1027 | -10/Materials | Repaired Lgt. Treads 1146 | -10/Materials | Learned 2 Mines zone layouts 1200 | -10/Materials | Learned Storage stockpile data 1277 | -10/Materials | Learned location of Mines (-8) 1298 | -10/Materials | Identified exit to Mines 1298 | -10/Materials | Identified exit to Subcaves 1298 | -10/Materials | Identified exit to Materials 1367 | -10/Materials | Learned 8 Materials zone layouts 1573 | -10/Materials | Entered Mines 1766 | -10/Mines | Found a hidden stash of uninstalled traps 1905 | -10/Mines | Found the Drone Emporium 2008 | -10/Mines | Discovered exit to Materials (range 8) 2048 | -10/Mines | Discovered exit to Materials (range 15) 2339 | -10/Mines | Met a Derelict shopkeep closing up shop 2705 | -10/Mines | Entered Materials 2705 | -9/Materials | Evolved 2 slots: Propulsion x1, Utility x1 2706 | -9/Materials | Identified exit to Mines 2707 | -9/Materials | Identified exit to Materials 3262 | -9/Materials | Discovered exit to Materials (range 10) 3637 | -9/Materials | Learned location of 1 exit from Materials 3817 | -9/Materials | Learned location of 1 exit from Recycling 3854 | -9/Materials | Learned Storage trap positions 3965 | -9/Materials | Learned location of Recycling (-8) 4487 | -9/Materials | Repaired Lgt. Armor Plating 4548 | -9/Materials | Entered Mines 4551 | -9/Mines | Received a Mining Laser from a helpful Derelict 4598 | -9/Mines | A Derelict revealed a hidden shortcut to a safe place 4622 | -9/Mines | Assembled infested the area 4627 | -9/Mines | Assisted by a Guerilla fighting off Assembled 4747 | -9/Mines | Learned 8 Materials zone layouts 4753 | -9/Mines | Discovered exit to Materials (range 8) 4760 | -9/Mines | Deemed a non-threat by the Exiles lab entrance 4761 | -9/Mines | Discovered new exit (range 5) 4776 | -9/Mines | Entered Exiles 4776 | -9/Exiles | Accompanied by 3 allies 4777 | -9/Exiles | Identified exit to Mines 4806 | -9/Exiles | Led the pair of lost Derelicts to a safe place 4821 | -9/Exiles | Met 8R-AWN 4873 | -9/Exiles | Met EX-HEX 4933 | -9/Exiles | Met EX-DEC 4989 | -9/Exiles | Met EX-BIN 5014 | -9/Exiles | Aligned with FarCom system 5016 | -9/Exiles | Given EX-Vault access code 5053 | -9/Exiles | Opened EX-Vault 5064 | -9/Exiles | Found PSU Rigger 5101 | -9/Exiles | Warned to stay clear of 0b10 Research branches 5185 | -9/Exiles | Found Potential Leg 5352 | -9/Exiles | Discovered exit to Mines (range 12) 5369 | -9/Exiles | Stole two prototypes: Potential Leg, PSU Rigger 5369 | -9/Exiles | Entered Mines 5617 | -8/Mines | Discovered exit to Materials (range 3) 5631 | -8/Mines | Entered Materials 5631 | -8/Materials | Evolved 2 slots: Utility x1, Weapon x1 5632 | -8/Materials | Identified exit to Factory 6023 | -8/Materials | Met 7R-MNS 6177 | -8/Materials | Discovered new exit (range 16) 6210 | -8/Materials | Build established: Skirmisher 6436 | -8/Materials | Entered Storage 6437 | -8/Storage | Identified exit to Recycling 6438 | -8/Storage | Loaded intel: 24 trap records 6680 | -8/Storage | Met a pair of Derelict thieves 6948 | -8/Storage | Garrison activated, responded to threat 7552 | -8/Storage | Discovered exit to Factory (range 8) 7833 | -8/Storage | Repaired Hrd. Medium Armor Plating 7896 | -8/Storage | Repaired Arm. Treads 8340 | -8/Storage | Repaired Arm. Treads 8387 | -8/Storage | Used back door to open Recycling access 8421 | -8/Storage | Assisted by bots powering up and referring to "LRC-V3" 8421 | -8/Storage | Central database locked down 8481 | -8/Storage | Entered Recycling 8481 | -8/Recycling | Accompanied by 10 allies 8482 | -8/Recycling | Identified exit to Scraptown 8722 | -8/Recycling | Build established: Commander-Skirmisher 9484 | -8/Recycling | Discovered new exit (range 16) 10789 | -8/Recycling | Scanned before Scraplab entrance 10833 | -8/Recycling | Entered Scraplab 10887 | -8/Recycling | Entered Scraptown 10887 | -8/Scraptown | Accompanied by 10 allies 11178 | -8/Scraptown | Build established: Commander-Tank 11257 | -8/Scraptown | Discovered new exit (range 11) 11409 | -8/Scraptown | Visited CR-KLE's Repair Center 11467 | -8/Scraptown | Visited The Evicted 11587 | -8/Scraptown | Visited IN-MT5's Study 11638 | -8/Scraptown | Visited Assassins FH 11669 | -8/Scraptown | Visited Comm Corps 12412 | -8/Scraptown | Visited Symbiants 12457 | -8/Scraptown | Visited Shadow of the Wyrm 14274 | -8/Scraptown | CR-KLE repaired 6 parts 14752 | -8/Scraptown | Attacked by Scraptown defenders 14756 | -8/Scraptown | Destroyed Triborg 14812 | -8/Scraptown | Found Tri-treads 14820 | -8/Scraptown | Found Tri-treads 14831 | -8/Scraptown | Found Prototype Ballistic Cannon 14915 | -8/Scraptown | Lost 4 allies 15020 | -8/Scraptown | Lost 4 allies 15024 | -8/Scraptown | Identified Siege Cannon 15226 | -8/Scraptown | Destroyed 7 combat bots 15287 | -8/Scraptown | Build established: Tank 16689 | -8/Scraptown | System corruption cleaned by C-Scrubber 18145 | -8/Scraptown | Found Siege Articulator 18169 | -8/Scraptown | Found Siege Articulator 18619 | -8/Scraptown | Destroyed 26 combat bots 18659 | -8/Scraptown | Build established: Scavenger-Tank 19796 | -8/Scraptown | Visited Scrapoid Pod Storage 19838 | -8/Scraptown | Visited Science Guys 19870 | -8/Scraptown | Found Voltaic Drivehammer 20162 | -8/Scraptown | Visited Science Testing Area 20199 | -8/Scraptown | Visited A0-MCA Data Center 20265 | -8/Scraptown | Visited Scrap Suit Storage 20304 | -8/Scraptown | Visited Junk Repository 20373 | -8/Scraptown | Visited Analyses Database 20426 | -8/Scraptown | Visited Abandonware Association 20456 | -8/Scraptown | Learned abandonware demo "ERRANTS.EXE" 20456 | -8/Scraptown | Learned abandonware demo "POISON.EXE" 20552 | -8/Scraptown | Visited Cartography Club 20582 | -8/Scraptown | Learned location of Storage (-8) 20582 | -8/Scraptown | Learned location of Upper Caves (-5) 20582 | -8/Scraptown | Learned location of Armory (-4) 20582 | -8/Scraptown | Learned 12 Factory zone layouts 20582 | -8/Scraptown | Learned 4 Access zone layouts 20582 | -8/Scraptown | Learned 8 Access zone layouts 20582 | -8/Scraptown | Learned 4 Mines zone layouts 20582 | -8/Scraptown | Learned 16 Upper Caves zone layouts 20582 | -8/Scraptown | Learned 24 Upper Caves zone layouts 20582 | -8/Scraptown | Learned location of 1 exit from Research 20582 | -8/Scraptown | Learned location of 2 exits from Research 20582 | -8/Scraptown | Learned location of 2 exits from Proximity Caves 20582 | -8/Scraptown | Identified exit to Factory 20823 | -8/Scraptown | Found Deep Structural Scanner 21470 | -8/Scraptown | Found Prototype Device 21470 | -8/Scraptown | Identified Exp. Recalibrator 22089 | -8/Scraptown | Found Scrapoid Pod 22251 | -8/Scraptown | Scrapoid Pod released 08S05-D (x5) 22394 | -8/Scraptown | Found Scrap Suit 22705 | -8/Scraptown | Build established: Scavenger-Scrapper 22998 | -8/Scraptown | Found Scrap Suit 23196 | -8/Scraptown | Found Scrap Suit 23828 | -8/Scraptown | Entered Factory 23828 | -6/Factory | Accompanied by 4 allies 23828 | -6/Factory | Evolved 4 slots: Power x1, Utility x3 23829 | -6/Factory | Identified exit to Lower Caves 23830 | -6/Factory | FarCom data flow suspended 23877 | -6/Factory | Tech Extrapolator generated special schematic: Machine Rigger 23951 | -6/Factory | Discovered new exit (range 14) 24121 | -6/Factory | Build established: Scavenger-Tank 24124 | -6/Factory | Garrison activated, responded to threat 24185 | -6/Factory | Lost 3 allies 24585 | -6/Factory | Fabricated IN-MT5's Pitchfork "Insurrection"? 24807 | -6/Factory | Reprogrammed and armed K-01 Serf 24808 | -6/Factory | Reprogrammed and armed K-01 Serf 24813 | -6/Factory | Reprogrammed and armed K-01 Serf 24936 | -6/Factory | Entered another Factory area 24936 | -5/Factory | Accompanied by 3 allies 24936 | -5/Factory | Evolved 2 slots: Utility x2 24983 | -5/Factory | Identified exit to DSF 24983 | -5/Factory | Entered DSF 24983 | -5/DSF | Accompanied by 3 allies 25008 | -5/DSF | Additional patrols routed to DSF 25083 | -5/DSF | Discovered new exit (range 16) 25111 | -5/DSF | Build established: Scavenger-Scrapper 25125 | -5/DSF | Found Prototype Processor 25125 | -5/DSF | Identified Exp. Melee Analysis Suite 25156 | -5/DSF | Sterilization system engaged 25176 | -5/DSF | Ambient heat levels rising (+10) 25191 | -5/DSF | Ambient heat levels rising (+10) 25191 | -5/DSF | Entered Factory 25191 | -4/Factory | Accompanied by 1 ally 25191 | -4/Factory | Evolved 2 slots: Power x1, Propulsion x1 25224 | -4/Factory | Found Prototype Processor 25224 | -4/Factory | Identified Exp. Signal Interpreter 25419 | -4/Factory | Build established: Scavenger-Tank 25738 | -4/Factory | Discovered new exit (range 16) 25781 | -4/Factory | Identified exit to Research 25784 | -4/Factory | Tech Extrapolator generated special schematic: Energy Deflector 25826 | -4/Factory | Entered Research 25826 | -3/Research | Evolved 2 slots: Propulsion x2 25827 | -3/Research | Identified exit to Quarantine 25827 | -3/Research | Identified exit to Research 26027 | -3/Research | Entered Quarantine 26027 | -3/Quarantine | Accompanied by 1 ally 26052 | -3/Quarantine | Cryocooling Duct disabled 26058 | -3/Quarantine | Cryocooling Duct disabled 26067 | -3/Quarantine | Ambient heat levels rising (+20) 26067 | -3/Quarantine | Non-combat units ordered to evacuate 26073 | -3/Quarantine | Ambient heat levels rising (+20) 26073 | -3/Quarantine | Combat units ordered to evacuate 26146 | -3/Quarantine | Found Alien Artifact 26173 | -3/Quarantine | Quarantine Guard activated 26217 | -3/Quarantine | Found Alien Artifact 26217 | -3/Quarantine | Identified Phase Armor 26238 | -3/Quarantine | Found Alien Artifact 26280 | -3/Quarantine | Spotted Quarantine Guard 26284 | -3/Quarantine | Destroyed Quarantine Guard 26288 | -3/Quarantine | Spotted Quarantine Guard 26289 | -3/Quarantine | Destroyed Quarantine Guard 26359 | -3/Quarantine | Found Alien Reactor 26407 | -3/Quarantine | Met incapacitated Sigix Warrior 26407 | -3/Quarantine | Lockdown squad dispatched 26411 | -3/Quarantine | Acquired the access code to the Sigix quarantine chamber 26414 | -3/Quarantine | Unlocked Sigix quarantine chamber 26424 | -3/Quarantine | Found Sigix Containment Pod 26569 | -3/Quarantine | Found Alien Launcher 26569 | -3/Quarantine | Identified Sigix Terminator 26703 | -3/Quarantine | Spotted Quarantine Guard 26712 | -3/Quarantine | Destroyed Quarantine Guard 26942 | -3/Quarantine | Found Alien Energy Cannon 26957 | -3/Quarantine | Spotted Quarantine Guard 26971 | -3/Quarantine | Destroyed Quarantine Guard 27012 | -3/Quarantine | Spotted Quarantine Guard 27019 | -3/Quarantine | Destroyed Quarantine Guard 27094 | -3/Quarantine | Spotted Quarantine Guard 27105 | -3/Quarantine | Destroyed Quarantine Guard 27129 | -3/Quarantine | Spotted Quarantine Guard 27148 | -3/Quarantine | Destroyed Quarantine Guard 27205 | -3/Quarantine | Identified Core Cannon 27245 | -3/Quarantine | Found Prototype Launcher 27245 | -3/Quarantine | Identified Adv. Micro-nuke Launcher 27563 | -3/Quarantine | Discovered exit to Research (range 8) 27563 | -3/Quarantine | Spotted Quarantine Guard 27563 | -3/Quarantine | Spotted Quarantine Guard 27577 | -3/Quarantine | Destroyed Quarantine Guard 27586 | -3/Quarantine | Destroyed Quarantine Guard 27757 | -3/Quarantine | Entered Research 27757 | -2/Research | Evolved 2 slots: Utility x2 27758 | -2/Research | Identified exit to Testing 27996 | -2/Research | Reprogrammed and armed K-01 Serf 28031 | -2/Research | Found Prototype Device 28066 | -2/Research | Identified Beam Splitter 28106 | -2/Research | Spotted B-90 Cyclops 28179 | -2/Research | Destroyed B-90 Cyclops 28256 | -2/Research | Entered Testing 28379 | -2/Testing | Spotted PX-F7G89X6NZG 28384 | -2/Testing | Rewired PX-F7G89X6NZG 28426 | -2/Testing | Garrison activated, responded to threat 28504 | -2/Testing | Build established: Tank 28528 | -2/Testing | Reprogrammed and armed K-01 Serf 28531 | -2/Testing | Protovariant out of control (PH-HSBSTXCE3D) 28531 | -2/Testing | Unleashed a protovariant (PH-HSBSTXCE3D) 28595 | -2/Testing | Found Prototype Device 28595 | -2/Testing | Identified 2N-1CE's Frost Array 28736 | -2/Testing | Spotted Striker 28754 | -2/Testing | Found Prototype Energy Cannon 28754 | -2/Testing | Identified Hpw. Disruptor Cannon 28868 | -2/Testing | Found Prototype Protection 28868 | -2/Testing | Identified SHELL Armor 29098 | -2/Testing | Discovered new exit (range 12) 29101 | -2/Testing | Destroyed 7 combat bots 29135 | -2/Testing | Identified exit to Access 29224 | -2/Testing | Found Prototype Device 29224 | -2/Testing | Identified AEGIS Remote Shield 29256 | -2/Testing | First assault squad dispatched 29283 | -2/Testing | Found Prototype Launcher 29289 | -2/Testing | Identified Containment Facilitator 29350 | -2/Testing | Found Prototype Ballistic Cannon 29350 | -2/Testing | Identified Perforator 29383 | -2/Testing | Found Prototype Reactor 29383 | -2/Testing | Identified Zero-point Reactor 29465 | -2/Testing | System corruption reached 10% 29523 | -2/Testing | Entered Access 29523 | -1/Access | Evolved 2 slots: Utility x2 29773 | -1/Access | First assault squad dispatched 29821 | -1/Access | Build established: Scavenger-Tank 29959 | -1/Access | Destroyed 7 combat bots 30100 | -1/Access | Infected Heavy with POISON.EXE 30171 | -1/Access | Identified exit to Surface 30182 | -1/Access | Spotted B-99 Colossus 30196 | -1/Access | System corruption reached 10% 30229 | -1/Access | Destroyed B-99 Colossus 30273 | -1/Access | Lost 3 parts (1p2u) 30389 | -1/Access | Garrison activated, responded to threat 30477 | -1/Access | Destroyed 19 combat bots 30540 | -1/Access | High security lockdown imminent 30574 | -1/Access | Destroyed 7 combat bots 30620 | -1/Access | High security lockdown engaged 30680 | -1/Access | Reprogrammed and armed K-01 Serf 30772 | -1/Access | Reprogrammed and armed K-01 Serf 30775 | -1/Access | Destroyed 16 combat bots 30793 | -1/Access | Scanned by Researcher 30796 | -1/Access | Spotted Investigator 30806 | -1/Access | Destroyed Investigator 30845 | -1/Access | Lost 5 parts (2p2n1w) 30906 | -1/Access | Destroyed 27 combat bots 30937 | -1/Access | Spotted Executioner 30937 | -1/Access | Spotted Striker 30937 | -1/Access | Spotted Executioner 30938 | -1/Access | Spotted B-99 Colossus 30940 | -1/Access | Spotted B-99 Colossus 30942 | -1/Access | Spotted Striker 30942 | -1/Access | Spotted Executioner 30946 | -1/Access | Spotted Executioner 30946 | -1/Access | Spotted Striker 30949 | -1/Access | Spotted Executioner 30951 | -1/Access | Core integrity fell below 50% 30955 | -1/Access | Core integrity fell below 20% 30958 | -1/Access | Destroyed by G-73 Enforcer with Heavy Laser Last Messages --------------- 30953_ Penetrated by Slug. 30953_ Slug penetrates Wall. 30953_ P-80 Master resets Executioner, system corruption cleaned. 30954_ Dropped Sigix Containment Pod. 30954_ Knocked back. 30954_ Slug penetrates Executioner. 30954_ Slug penetrates Wall. 30954_ Penetrated by Slug. 30954_ Slug penetrates Wall. 30954_ Penetrated by Slug. 30954_ Slug penetrates Wall. 30955_ Acquired 8 matter. 30957_ Penetrated by Slug. 30957_ Slug penetrates Wave Collapse Detector. 30957_ Wave Collapse Detector explodes. 30957_ Hcl. Linear Accelerator destroyed. 30957_ E-15 Imp destroyed. 30958_ 2N-1CE's Frost Array destroyed. 30958_ Slug penetrates Wall. Map ----- +----------------------------------------------------+ | ###?????????????????????????????????????????????? | | ?????????????????????????????